Workbook

Sheet Лист1
A1: Школа | C1: МОУ "Киселевская ОШИ" | F1: Утвердил: | G1: должность | H1: Директор
A2: Типовое примерное меню приготавливаемых блюд | G2: фамилия | H2: Желтышева О.Н.
A3: Возрастная категория | E3: 7-11 лет | G3: дата
A5: Неделя | B5: День недели | C5: Прием пищи | D5: Раздел меню | E5: Блюда | F5: Вес блюда, г | G5: Белки | H5: Жиры | I5: Углеводы | J5: Калорийность | K5: № рецептуры
A6: 1 | B6: 1 | C6: Завтрак | D6: гор.блюдо | E6: Каша овсяная из "Геркулес" жидкая | F6: 155 | G6: 4.79 | H6: 6.73 | I6: 19.27 | J6: 157 | K6: 109
D8: гор.напиток | E8: Какао с молоком (1 вариант) | F8: 200 | G8: 3.77 | H8: 3.93 | I8: 25.95 | J8: 154 | K8: 269
D9: хлеб | E9: Хлеб пшеничный | F9: 50 | G9: 4.25 | H9: 0.8 | I9: 18.5 | J9: 98 | K9: 389
D10: фрукты
D11: хлеб | E11: Хлеб ржаной | F11: 25 | G11: 1.55 | H11: 0.26 | I11: 7.76 | J11: 40 | K11: 399
E12: Нарезка из огурца | F12: 30 | G12: 0.27 | H12: 0.03 | I12: 0.88 | J12: 5
D13: итого | F13: =SUM(F6:F12) -> 460 | G13: =SUM(G6:G12) -> 14.63 | H13: 11.75 | I13: 72.36 | J13: 454
A14: =A6 -> 1 | B14: =B6 -> 1 | C14: Завтрак 2 | D14: фрукты
E15: Бутерброд с сыром (2 вариант) | F15: 36 | G15: 5.11 | H15: 8.24 | I15: 7.78 | J15: 125 | K15: 377
D16: напиток | E16: Сок фруктовый | F16: 200 | G16: 0.75 | I16: 20.57 | J16: 85 | K16: 391
D17: итого | F17: =SUM(F14:F16) -> 236 | G17: =SUM(G14:G16) -> 5.86 | H17: 8.24 | I17: 28.35 | J17: 210
A18: =A6 -> 1 | B18: =B6 -> 1 | C18: Обед | D18: закуска | E18: Салат из моркови и яблок | F18: 80 | G18: 0.72 | H18: 8.13 | I18: 6.59 | J18: 102 | K18: 11
D19: 1 блюдо | E19: Свекольник | F19: 250 | G19: 1.93 | H19: 6.34 | I19: 10.05 | J19: 104 | K19: 43
D20: 2 блюдо | E20: Печень говяжья по-строгановски | F20: 110 | G20: 23.32 | H20: 28.95 | I20: 4.7 | J20: 250 | K20: 192
D21: гарнир | E21: Макаронные изделия отварные | F21: 150 | G21: 5.52 | H21: 5.3 | I21: 35.33 | J21: 212 | K21: 396
D22: напиток | E22: Компот из яблок свежих | F22: 200 | G22: 0.16 | I22: 14.99 | J22: 61 | K22: 282
D23: хлеб бел. | E23: хлеб пшеничный | F23: 60 | G23: 5.1 | H23: 0.96 | I23: 22.2 | J23: 118 | K23: 389
D24: хлеб черн. | E24: Хлеб ржаной | F24: 30 | G24: 1.86 | H24: 0.32 | I24: 9.31 | J24: 48 | K24: 398
D27: итого | F27: =SUM(F18:F26) -> 880 | G27: =SUM(G18:G26) -> 38.61 | H27: 50 | I27: 103.17 | J27: 895
A28: =A6 -> 1 | B28: =B6 -> 1 | C28: Полдник | D28: булочное | E28: Булочка домашняя | F28: 40 | G28: 2.91 | H28: 4.71 | I28: 24.53 | J28: 152 | K28: 312
D29: напиток | E29: Чай без сахара | F29: 180 | K29: 300
D32: итого | F32: =SUM(F28:F31) -> 220 | G32: =SUM(G28:G31) -> 2.91 | H32: 4.71 | I32: 24.53 | J32: 152
A33: =A6 -> 1 | B33: =B6 -> 1 | C33: Ужин | D33: гор.блюдо | E33: Котлеты рыбные любительские | F33: 75 | G33: 8.7 | H33: 7.4 | I33: 4.5 | J33: 123 | K33: 162
D34: гарнир | E34: Рагу из овощей | F34: 155 | G34: 2.81 | H34: 11.24 | I34: 17.07 | J34: 181 | K34: 92
D35: напиток | E35: Чай с молоком (2 вариант) | F35: 200 | G35: 2.79 | H35: 2.55 | I35: 13.27 | J35: 87 | K35: 298
D36: хлеб | E36: Хлеб пшничный | F36: 40 | G36: 3.4 | H36: 0.64 | I36: 14.8 | J36: 78 | K36: 389
E37: Хлеб ржаной | F37: 25 | G37: 1.55 | H37: 0.26 | I37: 7.76 | J37: 40 | K37: 398
D39: итого | F39: =SUM(F33:F38) -> 495 | G39: =SUM(G33:G38) -> 19.25 | H39: 22.09 | I39: 57.4 | J39: 509
A40: =A6 -> 1 | B40: =B6 -> 1 | C40: Ужин 2 | D40: кисломол. | E40: Кефир | F40: 200 | G40: 5.6 | H40: 6.38 | I40: 8.18 | J40: 113 | K40: 272
D41: булочное
D42: напиток
D43: фрукты
D46: итого | F46: =SUM(F40:F45) -> 200 | G46: =SUM(G40:G45) -> 5.6 | H46: 6.38 | I46: 8.18 | J46: 113
A47: =A6 -> 1 | B47: =B6 -> 1 | C47: Итого за день: | F47: =F13+F17+F27+F32+F39+F46 -> 2491 | G47: =G13+G17+G27+G32+G39+G46 -> 86.86 | H47: 103.17 | I47: 293.99 | J47: 2333
A48: 1 | B48: 2 | C48: Завтрак | D48: гор.блюдо | E48: Каша "Дружба" | F48: 155 | G48: 4.95 | H48: 6.3 | I48: 26.53 | J48: 182 | K48: 102
E49: Яйцо вареное | F49: 40 | G49: 5.08 | H49: 4.6 | I49: 0.28 | J49: 63 | K49: 139
D50: гор.напиток | E50: Кофейный напиток с молоком (1 вариант) | F50: 200 | G50: 2.79 | H50: 3.19 | I50: 19.71 | J50: 119 | K50: 286
D51: хлеб | E51: Хлеб пшеничный | F51: 50 | G51: 4.25 | H51: 0.8 | I51: 18.5 | J51: 98 | K51: 389
D52: фрукты
E53: Хлеб ржаной | F53: 25 | G53: 1.55 | H53: 0.26 | I53: 7.76 | J53: 40 | K53: 398
D55: итого | F55: =SUM(F48:F54) -> 470 | G55: =SUM(G48:G54) -> 18.62 | H55: =SUM(H48:H54) -> 15.15 | I55: =SUM(I48:I54) -> 72.78 | J55: =SUM(J48:J54) -> 502
A56: =A48 -> 1 | B56: =B48 -> 2 | C56: Завтрак 2 | D56: фрукты
E57: Печенье сахарное | F57: 30 | G57: 2.25 | H57: 3.54 | I57: 7.08 | J57: 69 | K57: 392
E58: Сок фруктовый | F58: 200 | G58: 0.75 | I58: 20.57 | J58: 85 | K58: 391
D59: итого | F59: =SUM(F56:F58) -> 230 | G59: =SUM(G56:G58) -> 3 | H59: =SUM(H56:H58) -> 3.54 | I59: =SUM(I56:I58) -> 27.65 | J59: =SUM(J56:J58) -> 154
A60: =A48 -> 1 | B60: =B48 -> 2 | C60: Обед | D60: закуска | E60: Салат из свеклы с чесноком | F60: 80 | G60: 1.12 | H60: 8.06 | I60: 7.38 | J60: 106 | K60: 28
D61: 1 блюдо | E61: Суп из овощей | F61: 250 | G61: 1.93 | H61: 5.86 | I61: 12.59 | J61: 115 | K61: 44
D62: 2 блюдо | E62: Рыба, припущенная в молоке | F62: 95 | G62: 13.3 | H62: 8.2 | I62: 3.1 | J62: 146 | K62: 165
D63: гарнир | E63: Картофельное пюре | F63: 180 | G63: 3.83 | H63: 7.27 | I63: 27.95 | J63: 193 | K63: 395
D64: напиток | E64: Компот из смеси сухофруктов | F64: 20 | G64: 0.56 | I64: 27.89 | J64: 114 | K64: 283
D65: хлеб бел. | E65: Хлеб пшеничный | F65: 60 | G65: 5.1 | H65: 0.96 | I65: 22.2 | J65: 118 | K65: 389
D66: хлеб черн. | E66: Хлеб ржаной | F66: 30 | G66: 1.86 | H66: 0.32 | I66: 9.31 | J66: 48 | K66: 399
D69: итого | F69: =SUM(F60:F68) -> 715 | G69: =SUM(G60:G68) -> 27.7 | H69: =SUM(H60:H68) -> 30.67 | I69: =SUM(I60:I68) -> 110.42 | J69: =SUM(J60:J68) -> 840
A70: =A48 -> 1 | B70: =B48 -> 2 | C70: Полдник | D70: булочное | E70: Булочка ванильная | F70: 40 | G70: 5.87 | H70: 2.97 | I70: 23.33 | J70: 143 | K70: 311
D71: напиток | E71: Чай без сахара | F71: 180 | K71: 300
D74: итого | F74: =SUM(F70:F73) -> 220 | G74: =SUM(G70:G73) -> 5.87 | H74: =SUM(H70:H73) -> 2.97 | I74: =SUM(I70:I73) -> 23.33 | J74: =SUM(J70:J73) -> 143
A75: =A48 -> 1 | B75: =B48 -> 2 | C75: Ужин | D75: гор.блюдо | E75: Птица отварная | F75: 80 | G75: 12.15 | H75: 12.15 | I75: 0.65 | J75: 162 | K75: 212
D76: гарнир | E76: Пудинг из творога паровой | F76: 200 | G76: 25.17 | H76: 9.01 | I76: 40.96 | J76: 147 | K76: 151
D77: напиток | E77: Чай с сахаром | F77: 200 | G77: 0.12 | I77: 12.04 | J77: 49 | K77: 300
D78: хлеб | E78: Хлеб пшеничный | F78: 40 | G78: 3.4 | H78: 0.64 | I78: 14.8 | J78: 78 | K78: 389
E79: Хлеб ржаной | F79: 25 | G79: 1.55 | H79: 0.26 | I79: 7.76 | J79: 40 | K79: 398
E80: Соус молочный | F80: 40 | G80: 1.34 | H80: 2.76 | I80: 3.69 | J80: 45 | K80: 256
D81: итого | F81: =SUM(F75:F80) -> 585 | G81: =SUM(G75:G80) -> 43.73 | H81: =SUM(H75:H80) -> 24.82 | I81: =SUM(I75:I80) -> 79.9 | J81: =SUM(J75:J80) -> 521
A82: =A48 -> 1 | B82: =B48 -> 2 | C82: Ужин 2 | D82: кисломол. | E82: Ряженка | F82: 200 | G82: 5.6 | H82: 6.38 | I82: 8.18 | J82: 113 | K82: 272
D83: булочное
D84: напиток
D85: фрукты
D88: итого | F88: =SUM(F82:F87) -> 200 | G88: =SUM(G82:G87) -> 5.6 | H88: =SUM(H82:H87) -> 6.38 | I88: =SUM(I82:I87) -> 8.18 | J88: =SUM(J82:J87) -> 113
A89: =A48 -> 1 | B89: =B48 -> 2 | C89: Итого за день: | F89: =F55+F59+F69+F74+F81+F88 -> 2420 | G89: =G55+G59+G69+G74+G81+G88 -> 104.52 | H89: =H55+H59+H69+H74+H81+H88 -> 83.53 | I89: =I55+I59+I69+I74+I81+I88 -> 322.26 | J89: =J55+J59+J69+J74+J81+J88 -> 2273
A90: 1 | B90: 3 | C90: Завтрак | D90: гор.блюдо | E90: Омлет с сыром | F90: 140 | G90: 14.66 | H90: 21.2 | I90: 2.3 | J90: 260 | K90: 138
D92: гор.напиток | E92: Чай с молоком (2 вариант) | F92: 200 | G92: 2.8 | H92: 2.56 | I92: 13.31 | J92: 88 | K92: 297
D93: хлеб | E93: Хлеб пшеничный | F93: 50 | G93: 4.25 | H93: 0.8 | I93: 18.5 | J93: 98 | K93: 389
D94: фрукты | E94: Яблоки | F94: 100 | G94: 0.38 | H94: 0.35 | I94: 8.92 | J94: 40 | K94: 89
E95: Хлеб ржаной | F95: 25 | G95: 1.55 | H95: 0.26 | I95: 7.76 | J95: 40 | K95: 398
D97: итого | F97: =SUM(F90:F96) -> 515 | G97: =SUM(G90:G96) -> 23.64 | H97: =SUM(H90:H96) -> 25.17 | I97: =SUM(I90:I96) -> 50.79 | J97: =SUM(J90:J96) -> 526
A98: =A90 -> 1 | B98: =B90 -> 3 | C98: Завтрак 2 | D98: фрукты
E99: Бутерброд с маслом (3 вариант) | F99: 30 | G99: 0.1 | H99: 10.3 | I99: 0.14 | J99: 94 | K99: 393
E100: Сок фруктовый | F100: 200 | G100: 0.75 | I100: 20.57 | J100: 85 | K100: 391
D101: итого | F101: =SUM(F98:F100) -> 230 | G101: =SUM(G98:G100) -> 0.85 | H101: =SUM(H98:H100) -> 10.3 | I101: =SUM(I98:I100) -> 20.71 | J101: =SUM(J98:J100) -> 179
A102: =A90 -> 1 | B102: =B90 -> 3 | C102: Обед | D102: закуска | E102: Винегрет овощной | F102: 100 | G102: 1.26 | H102: 10.14 | I102: 8.32 | J102: 129 | K102: 1
D103: 1 блюдо | E103: Суп картофельный с макаронными изделиями | F103: 250 | G103: 2.83 | H103: 2.86 | I103: 21.76 | J103: 124 | K103: 47
D104: 2 блюдо | E104: Гуляш из говядины | F104: 100 | G104: 18.07 | H104: 20.17 | I104: 5.62 | J104: 277 | K104: 180
D105: гарнир | E105: Капуста тушеная | F105: 150 | G105: 3.93 | H105: 4.85 | I105: 20.18 | J105: 140 | K105: 397
D106: напиток | E106: Компот из изюма | F106: 200 | G106: 0.33 | I106: 22.66 | J106: 92 | K106: 280
D107: хлеб бел. | E107: Хлеб пшеничный | F107: 60 | G107: 5.1 | H107: 0.96 | I107: 22.2 | J107: 118 | K107: 389
D108: хлеб черн. | E108: Хлеб ржаной | F108: 30 | G108: 1.86 | H108: 0.32 | I108: 9.31 | J108: 48 | K108: 399
D111: итого | F111: =SUM(F102:F110) -> 890 | G111: =SUM(G102:G110) -> 33.38 | H111: =SUM(H102:H110) -> 39.3 | I111: =SUM(I102:I110) -> 110.05 | J111: =SUM(J102:J110) -> 928
A112: =A90 -> 1 | B112: =B90 -> 3 | C112: Полдник | D112: булочное | E112: Ватрушки | F112: 40 | G112: 4.38 | H112: 1.21 | I112: 14.57 | J112: 87 | K112: 330
D113: напиток | E113: Чай без сахара | F113: 180 | K113: 300
D116: итого | F116: =SUM(F112:F115) -> 220 | G116: =SUM(G112:G115) -> 4.38 | H116: =SUM(H112:H115) -> 1.21 | I116: =SUM(I112:I115) -> 14.57 | J116: =SUM(J112:J115) -> 87
A117: =A90 -> 1 | B117: =B90 -> 3 | C117: Ужин | D117: гор.блюдо | E117: Котлеты, биточки, шницели | F117: 85 | G117: 12.1 | H117: 13.28 | I117: 6.51 | J117: 201 | K117: 189
D118: гарнир | E118: Каша пшенная молочная жидкая | F118: 155 | G118: 4.57 | H118: 5.5 | I118: 25.93 | J118: 172 | K118: 112
D119: напиток | E119: Молоко кипяченое | F119: 200 | G119: 5.59 | H119: 6.38 | I119: 9.38 | J119: 117 | K119: 288
D120: хлеб | E120: Хлеб пшеничный | F120: 40 | G120: 3.4 | H120: 0.64 | I120: 14.8 | J120: 78 | K120: 389
E121: Хлеб ржаной | F121: 25 | G121: 1.55 | H121: 0.26 | I121: 7.76 | J121: 40 | K121: 398
D123: итого | F123: =SUM(F117:F122) -> 505 | G123: =SUM(G117:G122) -> 27.21 | H123: =SUM(H117:H122) -> 26.06 | I123: =SUM(I117:I122) -> 64.38 | J123: =SUM(J117:J122) -> 608
A124: =A90 -> 1 | B124: =B90 -> 3 | C124: Ужин 2 | D124: кисломол. | E124: Йогурт | F124: 200 | G124: 10 | H124: 3 | I124: 17 | J124: 135 | K124: 272
D125: булочное
D126: напиток
D127: фрукты
D130: итого | F130: =SUM(F124:F129) -> 200 | G130: =SUM(G124:G129) -> 10 | H130: =SUM(H124:H129) -> 3 | I130: =SUM(I124:I129) -> 17 | J130: =SUM(J124:J129) -> 135
A131: =A90 -> 1 | B131: =B90 -> 3 | C131: Итого за день: | F131: =F97+F101+F111+F116+F123+F130 -> 2560 | G131: =G97+G101+G111+G116+G123+G130 -> 99.46 | H131: =H97+H101+H111+H116+H123+H130 -> 105.04 | I131: =I97+I101+I111+I116+I123+I130 -> 277.5 | J131: =J97+J101+J111+J116+J123+J130 -> 2463
A132: 1 | B132: 4 | C132: Завтрак | D132: гор.блюдо | E132: Каша манная молочна яжидкая | F132: 155 | G132: 4.69 | H132: 6.09 | I132: 23.51 | J132: 168 | K132: 107
E133: Яйцо вареное | F133: 40 | G133: 5.08 | H133: 4.6 | I133: 0.28 | J133: 63 | K133: 139
D134: гор.напиток | E134: Какао с молоком | F134: 200 | G134: 3.77 | H134: 3.93 | I134: 25.95 | J134: 154 | K134: 269
D135: хлеб | E135: Хлеб пшеничный | F135: 50 | G135: 4.25 | H135: 0.8 | I135: 18.5 | J135: 98 | K135: 389
D136: фрукты | E136: Груша | F136: 170
E137: Хлеб ржаной | F137: 25 | G137: 1.55 | H137: 0.26 | I137: 7.76 | J137: 40 | K137: 398
D139: итого | F139: =SUM(F132:F138) -> 640 | G139: =SUM(G132:G138) -> 19.34 | H139: =SUM(H132:H138) -> 15.68 | I139: =SUM(I132:I138) -> 76 | J139: =SUM(J132:J138) -> 523
A140: =A132 -> 1 | B140: =B132 -> 4 | C140: Завтрак 2 | D140: фрукты
E141: Бутерброд с сыром (2 вариант) | F141: 36 | G141: 5.11 | H141: 8.24 | I141: 7.78 | J141: 125 | K141: 377
E142: Сок фруктовый | F142: 200 | G142: 0.75 | I142: 20.57 | J142: 85 | K142: 391
D143: итого | F143: =SUM(F140:F142) -> 236 | G143: =SUM(G140:G142) -> 5.86 | H143: =SUM(H140:H142) -> 8.24 | I143: =SUM(I140:I142) -> 28.35 | J143: =SUM(J140:J142) -> 210
A144: =A132 -> 1 | B144: =B132 -> 4 | C144: Обед | D144: закуска | E144: Салат из моркови | F144: 80 | G144: 0.91 | H144: 8.06 | I144: 8.3 | J144: 110 | K144: 9
D145: 1 блюдо | E145: Щи из свежей капусты с картофелем | F145: 250 | G145: 2.09 | H145: 6.33 | I145: 10.64 | J145: 108 | K145: 63
D146: 2 блюдо | E146: Птица отварная | F146: 80 | G146: 12.15 | H146: 12.15 | I146: 0.65 | J146: 162 | K146: 212
D147: гарнир | E147: Макаронные изделия отварные | F147: 150 | G147: 5.52 | H147: 5.3 | I147: 35.33 | J147: 212 | K147: 396
D148: напиток | E148: Компот из яблок свежих | F148: 200 | G148: 0.16 | I148: 14.99 | J148: 61 | K148: 282
D149: хлеб бел. | E149: Хлеб пшеничный | F149: 60 | G149: 5.1 | H149: 0.96 | I149: 22.2 | J149: 118 | K149: 389
D150: хлеб черн. | E150: Хлеб ржаной | F150: 30 | G150: 1.86 | H150: 0.32 | I150: 9.31 | J150: 48 | K150: 399
D153: итого | F153: =SUM(F144:F152) -> 850 | G153: =SUM(G144:G152) -> 27.79 | H153: =SUM(H144:H152) -> 33.12 | I153: =SUM(I144:I152) -> 101.42 | J153: =SUM(J144:J152) -> 819
A154: =A132 -> 1 | B154: =B132 -> 4 | C154: Полдник | D154: булочное | E154: Пирожок с картофелем и луком | F154: 40 | G154: 1.76 | H154: 1.34 | I154: 11.88 | J154: 67 | K154: 329
D155: напиток | E155: Чай без сахара | F155: 180 | K155: 300
D158: итого | F158: =SUM(F154:F157) -> 220 | G158: =SUM(G154:G157) -> 1.76 | H158: =SUM(H154:H157) -> 1.34 | I158: =SUM(I154:I157) -> 11.88 | J158: =SUM(J154:J157) -> 67
A159: =A132 -> 1 | B159: =B132 -> 4 | C159: Ужин | D159: гор.блюдо | E159: Рыба (филе) отварная | F159: 80 | G159: 13.12 | H159: 5.12 | I159: 0.46 | J159: 107 | K159: 163
D160: гарнир | E160: Каша ячневая молочная вязкая | F160: 155 | G160: 5.47 | H160: 5.04 | I160: 29.9 | J160: 187 | K160: 115
D161: напиток | E161: Кисель из концентрата | F161: 200 | G161: 1.36 | I161: 29.02 | J161: 116 | K161: 274
D162: хлеб | E162: Хлеб пшеничный | F162: 40 | G162: 3.4 | H162: 0.64 | I162: 14.8 | J162: 78 | K162: 389
E163: Хлеб ржаной | F163: 25 | G163: 1.55 | H163: 0.26 | I163: 7.76 | J163: 40 | K163: 398
D165: итого | F165: =SUM(F159:F164) -> 500 | G165: =SUM(G159:G164) -> 24.9 | H165: =SUM(H159:H164) -> 11.06 | I165: =SUM(I159:I164) -> 81.94 | J165: =SUM(J159:J164) -> 528
A166: =A132 -> 1 | B166: =B132 -> 4 | C166: Ужин 2 | D166: кисломол. | E166: Кефир | F166: 200 | G166: 5.6 | H166: 6.38 | I166: 8.18 | J166: 113 | K166: 272
D167: булочное
D168: напиток
D169: фрукты
D172: итого | F172: =SUM(F166:F171) -> 200 | G172: =SUM(G166:G171) -> 5.6 | H172: =SUM(H166:H171) -> 6.38 | I172: =SUM(I166:I171) -> 8.18 | J172: =SUM(J166:J171) -> 113
A173: =A132 -> 1 | B173: =B132 -> 4 | C173: Итого за день: | F173: =F139+F143+F153+F158+F165+F172 -> 2646 | G173: =G139+G143+G153+G158+G165+G172 -> 85.25 | H173: =H139+H143+H153+H158+H165+H172 -> 75.82 | I173: =I139+I143+I153+I158+I165+I172 -> 307.77 | J173: =J139+J143+J153+J158+J165+J172 -> 2260
A174: 1 | B174: 5 | C174: Завтрак | D174: гор.блюдо | E174: Каша рисовая молочная вязкая | F174: 155 | G174: 3.87 | H174: 5.01 | I174: 24.66 | J174: 159 | K174: 114
D176: гор.напиток | E176: Кофейный напиток с молоком (1 вариант) | F176: 200 | G176: 2.79 | H176: 3.19 | I176: 19.71 | J176: 119 | K176: 286
D177: хлеб | E177: Хлеб пшеничный | F177: 50 | G177: 4.25 | H177: 0.8 | I177: 18.5 | J177: 98 | K177: 389
D178: фрукты | E178: Яблоки | F178: 100 | G178: 0.38 | H178: 0.35 | I178: 8.92 | J178: 40 | K178: 89
D181: итого | F181: =SUM(F174:F180) -> 505 | G181: =SUM(G174:G180) -> 11.29 | H181: =SUM(H174:H180) -> 9.35 | I181: =SUM(I174:I180) -> 71.79 | J181: =SUM(J174:J180) -> 416
A182: =A174 -> 1 | B182: =B174 -> 5 | C182: Завтрак 2 | D182: фрукты
E183: Пряники | F183: 30 | G183: 1.66 | H183: 1.24 | I183: 20.48 | J183: 100 | K183: 400
E184: Сок фруктовый | F184: 200 | G184: 0.75 | I184: 20.57 | J184: 85 | K184: 391
D185: итого | F185: =SUM(F182:F184) -> 230 | G185: =SUM(G182:G184) -> 2.41 | H185: =SUM(H182:H184) -> 1.24 | I185: =SUM(I182:I184) -> 41.05 | J185: =SUM(J182:J184) -> 185
A186: =A174 -> 1 | B186: =B174 -> 5 | C186: Обед | D186: закуска | E186: Салат из белокочанной капусты с морковью | F186: 80 | G186: 0.67 | H186: 4.05 | I186: 4.26 | J186: 56 | K186: 4
D187: 1 блюдо | E187: Суп картофельный с рыбными фрикадельками | F187: 250/35 | G187: 8 | H187: 3.42 | I187: 19.82 | J187: 151 | K187: 49
D188: 2 блюдо | E188: Жаркое по-домашнему | F188: 220 | G188: 22.54 | H188: 17.33 | I188: 22.13 | J188: 334 | K188: 181
D189: гарнир
D190: напиток | E190: Компот из смеси сухофруктов | F190: 200 | G190: 0.56 | I190: 27.89 | J190: 114 | K190: 283
D191: хлеб бел. | E191: Хлеб пшеничный | F191: 60 | G191: 5.1 | H191: 0.96 | I191: 22.2 | J191: 118 | K191: 389
D192: хлеб черн.
D195: итого | F195: =SUM(F186:F194) -> 560 | G195: =SUM(G186:G194) -> 36.87 | H195: =SUM(H186:H194) -> 25.76 | I195: =SUM(I186:I194) -> 96.3 | J195: =SUM(J186:J194) -> 773
A196: =A174 -> 1 | B196: =B174 -> 5 | C196: Полдник | D196: булочное
D197: напиток | E197: Чай без сахара | F197: 180 | K197: 300
E198: Морковная запеканка | F198: 155 | G198: 6.7 | H198: 19.29 | I198: 35.9 | J198: 344 | K198: 85
D200: итого | F200: =SUM(F196:F199) -> 335 | G200: =SUM(G196:G199) -> 6.7 | H200: =SUM(H196:H199) -> 19.29 | I200: =SUM(I196:I199) -> 35.9 | J200: =SUM(J196:J199) -> 344
A201: =A174 -> 1 | B201: =B174 -> 5 | C201: Ужин | D201: гор.блюдо | E201: Пудинг из говядины с овощами | F201: 155 | G201: 15.17 | H201: 18.37 | I201: 17.96 | J201: 299 | K201: 195
D202: гарнир
D203: напиток | E203: Чай с лимоном | F203: 200 | G203: 0.07 | H203: 0.01 | I203: 15.31 | J203: 62 | K203: 294
D204: хлеб | E204: Хлеб пшеничный | F204: 40 | G204: 3.4 | H204: 0.64 | I204: 14.8 | J204: 78 | K204: 389
E205: Хлеб ржаной | F205: 25 | G205: 1.55 | H205: 0.26 | I205: 7.76 | J205: 40 | K205: 398
D207: итого | F207: =SUM(F201:F206) -> 420 | G207: =SUM(G201:G206) -> 20.19 | H207: =SUM(H201:H206) -> 19.28 | I207: =SUM(I201:I206) -> 55.83 | J207: =SUM(J201:J206) -> 479
A208: =A174 -> 1 | B208: =B174 -> 5 | C208: Ужин 2 | D208: кисломол. | E208: Ряженка | F208: 200 | G208: 5.6 | H208: 6.38 | I208: 8.18 | J208: 113 | K208: 272
D209: булочное
D210: напиток
D211: фрукты
D214: итого | F214: =SUM(F208:F213) -> 200 | G214: =SUM(G208:G213) -> 5.6 | H214: =SUM(H208:H213) -> 6.38 | I214: =SUM(I208:I213) -> 8.18 | J214: =SUM(J208:J213) -> 113
A215: =A174 -> 1 | B215: =B174 -> 5 | C215: Итого за день: | F215: =F181+F185+F195+F200+F207+F214 -> 2250 | G215: =G181+G185+G195+G200+G207+G214 -> 83.06 | H215: =H181+H185+H195+H200+H207+H214 -> 81.3 | I215: =I181+I185+I195+I200+I207+I214 -> 309.05 | J215: =J181+J185+J195+J200+J207+J214 -> 2310
A216: 1 | B216: 6 | C216: Завтрак | D216: гор.блюдо
D218: гор.напиток
D219: хлеб
D220: фрукты
D223: итого | F223: =SUM(F216:F222) -> 0 | G223: =SUM(G216:G222) -> 0 | H223: =SUM(H216:H222) -> 0 | I223: =SUM(I216:I222) -> 0 | J223: =SUM(J216:J222) -> 0
A224: =A216 -> 1 | B224: =B216 -> 6 | C224: Завтрак 2 | D224: фрукты
D227: итого | F227: =SUM(F224:F226) -> 0 | G227: =SUM(G224:G226) -> 0 | H227: =SUM(H224:H226) -> 0 | I227: =SUM(I224:I226) -> 0 | J227: =SUM(J224:J226) -> 0
A228: =A216 -> 1 | B228: =B216 -> 6 | C228: Обед | D228: закуска
D229: 1 блюдо
D230: 2 блюдо
D231: гарнир
D232: напиток
D233: хлеб бел.
D234: хлеб черн.
D237: итого | F237: =SUM(F228:F236) -> 0 | G237: =SUM(G228:G236) -> 0 | H237: =SUM(H228:H236) -> 0 | I237: =SUM(I228:I236) -> 0 | J237: =SUM(J228:J236) -> 0
A238: =A216 -> 1 | B238: =B216 -> 6 | C238: Полдник | D238: булочное
D239: напиток
D242: итого | F242: =SUM(F238:F241) -> 0 | G242: =SUM(G238:G241) -> 0 | H242: =SUM(H238:H241) -> 0 | I242: =SUM(I238:I241) -> 0 | J242: =SUM(J238:J241) -> 0
A243: =A216 -> 1 | B243: =B216 -> 6 | C243: Ужин | D243: гор.блюдо
D244: гарнир
D245: напиток
D246: хлеб
D249: итого | F249: =SUM(F243:F248) -> 0 | G249: =SUM(G243:G248) -> 0 | H249: =SUM(H243:H248) -> 0 | I249: =SUM(I243:I248) -> 0 | J249: =SUM(J243:J248) -> 0
A250: =A216 -> 1 | B250: =B216 -> 6 | C250: Ужин 2 | D250: кисломол.
D251: булочное
D252: напиток
D253: фрукты
... 264 more rows
